[Event "Elite Hotels Open 2023"]
[Site "Elite Stadshotellet, Kungsgatan 6, Vaxjo, Sweden"]
[Date "2023.02.11"]
[Round "6.11"]
[White "Bellon Lopez, Juan Manuel"]
[Black "Mashhadi, Peyman"]
[Result "1-0"]
[TimeControl "15 minutes + 5 seconds per move from move one (Round 1 - 4) / 90 minutes + 30 seconds per move from move one (Round 5 - 8)"]
[WhiteTitle "GM"]
[WhiteFideId "2200031"]
[BlackFideId "1768581"]
[WhiteElo "2303"]
[BlackElo "2018"]

1. d4 {[%clk 01:31:20]} {[%emt 00:00:13]} Nf6 {[%clk 01:31:19]} {[%emt
00:00:09]} 2. Bg5 {[%clk 01:31:41]} {[%emt 00:00:09]} e6 {[%clk 01:31:29]}
{[%emt 00:00:19]} 3. Nf3 {[%clk 01:31:58]} {[%emt 00:00:13]} Be7 {[%clk
01:31:13]} {[%emt 00:00:46]} 4. e3 {[%clk 01:32:07]} {[%emt 00:00:21]} b6
{[%clk 01:30:49]} {[%emt 00:00:55]} 5. Nbd2 {[%clk 01:31:23]} {[%emt 00:01:14]}
Bb7 {[%clk 01:30:35]} {[%emt 00:00:44]} 6. Bd3 {[%clk 01:31:33]} {[%emt
00:00:19]} d6 {[%clk 01:26:48]} {[%emt 00:04:18]} 7. O-O {[%clk 01:30:46]}
{[%emt 00:01:17]} Nbd7 {[%clk 01:26:08]} {[%emt 00:01:10]} 8. a4 {[%clk
01:29:04]} {[%emt 00:02:11]} a5 {[%clk 01:24:56]} {[%emt 00:01:42]} 9. c3
{[%clk 01:26:13]} {[%emt 00:03:22]} h6 {[%clk 01:21:15]} {[%emt 00:04:11]} 10.
Bxf6 {[%clk 01:24:18]} {[%emt 00:02:25]} Bxf6 {[%clk 01:17:03]} {[%emt
00:04:42]} 11. Re1 {[%clk 01:22:57]} {[%emt 00:01:50]} g5 {[%clk 01:11:35]}
{[%emt 00:06:00]} 12. Ne4 {[%clk 01:21:45]} {[%emt 00:01:42]} Bg7 {[%clk
01:06:10]} {[%emt 00:05:55]} 13. Nfd2 {[%clk 01:20:56]} {[%emt 00:01:18]} h5
{[%clk 01:03:29]} {[%emt 00:03:12]} 14. f4 {[%clk 01:18:21]} {[%emt 00:03:06]}
g4 {[%clk 01:02:40]} {[%emt 00:01:19]} 15. b4 {[%clk 01:12:21]} {[%emt
00:06:30]} Qe7 {[%clk 00:59:52]} {[%emt 00:03:18]} 16. bxa5 {[%clk 01:12:27]}
{[%emt 00:00:25]} d5 {[%clk 00:52:33]} {[%emt 00:07:50]} 17. Ng3 {[%clk
01:05:41]} {[%emt 00:07:15]} h4 {[%clk 00:38:33]} {[%emt 00:14:29]} 18. Ngf1
{[%clk 01:02:45]} {[%emt 00:03:26]} f5 {[%clk 00:38:37]} {[%emt 00:00:26]} 19.
axb6 {[%clk 01:02:14]} {[%emt 00:01:02]} cxb6 {[%clk 00:38:56]} {[%emt
00:00:11]} 20. Qb3 {[%clk 00:57:15]} {[%emt 00:05:29]} Bc6 {[%clk 00:38:46]}
{[%emt 00:00:40]} 21. Bb5 {[%clk 00:56:01]} {[%emt 00:01:44]} Bxb5 {[%clk
00:35:39]} {[%emt 00:03:37]} 22. axb5 {[%clk 00:55:14]} {[%emt 00:01:17]} Kf7
{[%clk 00:35:19]} {[%emt 00:00:50]} 23. Ra6 {[%clk 00:54:52]} {[%emt 00:00:52]}
Rac8 {[%clk 00:33:44]} {[%emt 00:02:05]} 24. Ra7 {[%clk 00:54:46]} {[%emt
00:00:34]} Qd6 {[%clk 00:30:37]} {[%emt 00:03:39]} 25. Rea1 {[%clk 00:47:58]}
{[%emt 00:07:18]} Rc7 {[%clk 00:27:22]} {[%emt 00:03:46]} 26. Qa3 {[%clk
00:42:10]} {[%emt 00:06:17]} Qxa3 {[%clk 00:27:13]} {[%emt 00:00:40]} 27. R1xa3
{[%clk 00:42:30]} {[%emt 00:00:10]} Rhc8 {[%clk 00:26:55]} {[%emt 00:00:48]} 28.
Nb1 {[%clk 00:41:31]} {[%emt 00:01:28]} Bf8 {[%clk 00:25:46]} {[%emt 00:01:40]}
29. R3a6 {[%clk 00:40:34]} {[%emt 00:01:26]} Be7 {[%clk 00:21:14]} {[%emt
00:05:02]} 30. Nfd2 {[%clk 00:40:29]} {[%emt 00:00:34]} Ke8 {[%clk 00:19:54]}
{[%emt 00:01:51]} 31. Kf2 {[%clk 00:38:51]} {[%emt 00:02:08]} Bd8 {[%clk
00:18:36]} {[%emt 00:01:48]} 32. Ke2 {[%clk 00:37:10]} {[%emt 00:02:12]} Be7
{[%clk 00:15:19]} {[%emt 00:03:48]} 33. Kd3 {[%clk 00:36:48]} {[%emt 00:00:50]}
Bf8 {[%clk 00:11:21]} {[%emt 00:04:28]} 34. Rxc7 {[%clk 00:32:19]} {[%emt
00:05:00]} Rxc7 {[%clk 00:11:44]} {[%emt 00:00:07]} 35. Na3 {[%clk 00:27:56]}
{[%emt 00:04:53]} Nf6 {[%clk 00:08:19]} {[%emt 00:03:54]} 36. Nc2 {[%clk
00:28:07]} {[%emt 00:00:20]} Nd7 {[%clk 00:07:34]} {[%emt 00:01:14]} 37. c4
{[%clk 00:26:48]} {[%emt 00:01:49]} Kf7 {[%clk 00:07:39]} {[%emt 00:00:25]} 38.
Kc3 {[%clk 00:21:36]} {[%emt 00:05:42]} dxc4 {[%clk 00:05:10]} {[%emt
00:03:00]} 39. Nxc4 {[%clk 00:20:36]} {[%emt 00:01:29]} Nf6 {[%clk 00:03:35]}
{[%emt 00:02:05]} 40. Kb3 {[%clk 00:18:43]} {[%emt 00:02:23]} h3 {[%clk
00:03:13]} {[%emt 00:00:53]} 41. gxh3 {[%clk 00:18:11]} {[%emt 00:01:02]} gxh3
{[%clk 00:03:41]} {[%emt 00:00:02]} 42. Ne5+ {[%clk 00:14:14]} {[%emt
00:04:27]} Ke7 {[%clk 00:02:43]} {[%emt 00:01:28]} 43. Rxb6 {[%clk 00:14:06]}
{[%emt 00:00:38]} Ng4 {[%clk 00:02:22]} {[%emt 00:00:52]} 44. Nf3 {[%clk
00:12:57]} {[%emt 00:01:37]} Kd7 {[%clk 00:01:34]} {[%emt 00:01:18]} 45. Ng5
{[%clk 00:11:50]} {[%emt 00:01:37]} Nxh2 {[%clk 00:01:30]} {[%emt 00:00:35]} 46.
Nxh3 {[%clk 00:10:19]} {[%emt 00:02:02]} Nf3 {[%clk 00:01:58]} {[%emt
00:00:01]} 47. Rb8 {[%clk 00:08:47]} {[%emt 00:02:02]} Nd2+ {[%clk 00:01:46]}
{[%emt 00:00:42]} 48. Kb2 {[%clk 00:08:44]} {[%emt 00:00:33]} Nc4+ {[%clk
00:01:12]} {[%emt 00:01:05]} 49. Kb1 {[%clk 00:08:20]} {[%emt 00:00:54]} Bd6
{[%clk 00:00:47]} {[%emt 00:00:54]} 50. Rh8 {[%clk 00:05:57]} {[%emt 00:02:53]}
Rb7 {[%clk 00:00:49]} {[%emt 00:00:29]} 51. Rh7+ {[%clk 00:06:22]} {[%emt
00:00:05]} Be7 {[%clk 00:01:17]} {[%emt 00:00:02]} 52. Ng5 {[%clk 00:06:36]}
{[%emt 00:00:17]} Rxb5+ {[%clk 00:01:35]} {[%emt 00:00:12]} 53. Kc1 {[%clk
00:07:04]} {[%emt 00:00:01]} Rb3 {[%clk 00:00:45]} {[%emt 00:01:20]} 54. Nf7
{[%clk 00:06:54]} {[%emt 00:00:40]} Nxe3 {[%clk 00:00:44]} {[%emt 00:00:30]} 55.
Ne5+ {[%emt 00:00:09]} Kd6 {[%clk 00:00:46]} {[%emt 00:00:27]} 56. Nxe3 {[%clk
00:07:40]} {[%emt 00:00:06]} Rc3+ {[%clk 00:00:35]} {[%emt 00:00:42]} 57. Kd2
{[%clk 00:08:00]} {[%emt 00:00:10]} Rc7 {[%clk 00:00:45]} {[%emt 00:00:20]} 58.
Kd3 {[%clk 00:06:50]} {[%emt 00:01:40]} Ra7 {[%clk 00:00:43]} {[%emt 00:00:33]}
59. N3c4+ {[%clk 00:06:41]} {[%emt 00:00:38]} Kd5 {[%clk 00:00:45]} {[%emt
00:00:29]} 60. Nb6+ {[%clk 00:06:52]} {[%emt 00:00:19]} 1-0

[Event "Elite Hotels Open 2023"]
[Site "Elite Stadshotellet, Kungsgatan 6, Vaxjo, Sweden"]
[Date "2023.02.11"]
[Round "6.12"]
[White "Ernst, Thomas"]
[Black "Strom-Engdahl, Alexander"]
[Result "0-1"]
[TimeControl "15 minutes + 5 seconds per move from move one (Round 1 - 4) / 90 minutes + 30 seconds per move from move one (Round 5 - 8)"]
[WhiteTitle "GM"]
[WhiteFideId "1700065"]
[BlackFideId "1741586"]
[WhiteElo "2286"]
[BlackElo "2097"]

1. e4 {[%clk 01:30:53]} {[%emt 00:00:07]} e6 {[%clk 01:30:51]} {[%emt
00:00:08]} 2. d4 {[%clk 01:31:08]} {[%emt 00:00:16]} d5 {[%clk 01:31:16]}
{[%emt 00:00:05]} 3. Nd2 {[%clk 01:30:38]} {[%emt 00:00:59]} c5 {[%clk
01:31:31]} {[%emt 00:00:16]} 4. exd5 {[%clk 01:30:58]} {[%emt 00:00:09]} Qxd5
{[%clk 01:31:57]} {[%emt 00:00:05]} 5. Ngf3 {[%clk 01:31:06]} {[%emt 00:00:21]}
cxd4 {[%clk 01:32:22]} {[%emt 00:00:06]} 6. Bc4 {[%clk 01:31:23]} {[%emt
00:00:12]} Qd6 {[%clk 01:32:48]} {[%emt 00:00:04]} 7. O-O {[%clk 01:31:35]}
{[%emt 00:00:18]} Nf6 {[%clk 01:33:10]} {[%emt 00:00:08]} 8. Nb3 {[%clk
01:31:57]} {[%emt 00:00:08]} Nc6 {[%clk 01:33:37]} {[%emt 00:00:04]} 9. Nbxd4
{[%clk 01:32:12]} {[%emt 00:00:14]} Nxd4 {[%clk 01:34:01]} {[%emt 00:00:07]} 10.
Nxd4 {[%clk 01:32:36]} {[%emt 00:00:06]} Be7 {[%clk 01:34:23]} {[%emt
00:00:07]} 11. b3 {[%clk 01:32:12]} {[%emt 00:00:53]} O-O {[%clk 01:32:56]}
{[%emt 00:01:59]} 12. Bb2 {[%clk 01:32:34]} {[%emt 00:00:08]} Bd7 {[%clk
01:30:14]} {[%emt 00:03:11]} 13. Qe2 {[%clk 01:20:55]} {[%emt 00:12:10]} Qc7
{[%clk 01:23:37]} {[%emt 00:07:06]} 14. Rad1 {[%clk 01:15:40]} {[%emt
00:05:45]} Rfe8 {[%clk 01:16:08]} {[%emt 00:08:00]} 15. Nf3 {[%clk 01:13:36]}
{[%emt 00:02:34]} Rad8 {[%clk 01:11:58]} {[%emt 00:04:41]} 16. Ne5 {[%clk
01:12:41]} {[%emt 00:01:24]} a6 {[%clk 01:10:25]} {[%emt 00:02:03]} 17. Bd3
{[%clk 01:05:12]} {[%emt 00:07:59]} Bc6 {[%clk 01:07:02]} {[%emt 00:03:54]} 18.
c4 {[%clk 01:04:15]} {[%emt 00:01:26]} b6 {[%clk 01:01:07]} {[%emt 00:06:25]}
19. a3 {[%clk 00:54:09]} {[%emt 00:10:36]} Ba8 {[%clk 00:56:55]} {[%emt
00:04:43]} 20. b4 {[%clk 00:53:05]} {[%emt 00:01:34]} Bd6 {[%clk 00:55:44]}
{[%emt 00:01:41]} 21. f4 {[%clk 00:50:28]} {[%emt 00:03:07]} Qe7 {[%clk
00:55:40]} {[%emt 00:00:34]} 22. Bc2 {[%clk 00:41:52]} {[%emt 00:09:04]} a5
{[%clk 00:54:34]} {[%emt 00:01:38]} 23. Rd3 {[%clk 00:36:16]} {[%emt 00:06:06]}
axb4 {[%clk 00:52:32]} {[%emt 00:02:31]} 24. Rh3 {[%clk 00:36:00]} {[%emt
00:00:46]} Qb7 {[%clk 00:50:17]} {[%emt 00:02:46]} 25. Ng4 {[%clk 00:30:32]}
{[%emt 00:05:57]} Bc5+ {[%clk 00:49:40]} {[%emt 00:01:08]} 26. Kh1 {[%clk
00:30:21]} {[%emt 00:00:41]} Qxg2+ {[%clk 00:48:24]} {[%emt 00:01:46]} 27. Qxg2
{[%clk 00:30:45]} {[%emt 00:00:06]} Bxg2+ {[%clk 00:48:49]} {[%emt 00:00:05]}
0-1

[Event "Elite Hotels Open 2023"]
[Site "Elite Stadshotellet, Kungsgatan 6, Vaxjo, Sweden"]
[Date "2023.02.11"]
[Round "6.13"]
[White "Eriksson, Kristian"]
[Black "Johansson, Ulf"]
[Result "1-0"]
[TimeControl "15 minutes + 5 seconds per move from move one (Round 1 - 4) / 90 minutes + 30 seconds per move from move one (Round 5 - 8)"]
[WhiteFideId "1705172"]
[BlackFideId "1701380"]
[WhiteElo "2053"]
[BlackElo "2205"]

1. e4 {[%clk 01:30:55]} {[%emt 00:00:04]} c5 {[%clk 01:30:49]} {[%emt
00:00:12]} 2. Nc3 {[%clk 01:31:12]} {[%emt 00:00:12]} Nc6 {[%clk 01:31:13]}
{[%emt 00:00:07]} 3. Bb5 {[%clk 01:31:30]} {[%emt 00:00:11]} Nd4 {[%clk
01:31:26]} {[%emt 00:00:18]} 4. Bc4 {[%clk 01:31:35]} {[%emt 00:00:24]} d6
{[%clk 01:28:41]} {[%emt 00:03:16]} 5. Nge2 {[%clk 01:28:27]} {[%emt 00:03:37]}
g6 {[%clk 01:28:05]} {[%emt 00:01:06]} 6. O-O {[%clk 01:26:30]} {[%emt
00:02:28]} Bg7 {[%clk 01:28:30]} {[%emt 00:00:05]} 7. d3 {[%clk 01:24:54]}
{[%emt 00:02:05]} e6 {[%clk 01:25:01]} {[%emt 00:03:59]} 8. Nxd4 {[%clk
01:19:45]} {[%emt 00:05:40]} cxd4 {[%clk 01:25:00]} {[%emt 00:00:31]} 9. Ne2
{[%clk 01:19:37]} {[%emt 00:00:37]} Ne7 {[%clk 01:25:11]} {[%emt 00:00:19]} 10.
Bg5 {[%clk 01:17:07]} {[%emt 00:02:59]} h6 {[%clk 01:24:55]} {[%emt 00:00:48]}
11. Bd2 {[%clk 01:13:40]} {[%emt 00:03:56]} O-O {[%clk 01:25:01]} {[%emt
00:00:24]} 12. c3 {[%clk 01:09:17]} {[%emt 00:04:53]} d5 {[%clk 01:22:39]}
{[%emt 00:02:52]} 13. Bb3 {[%clk 01:04:51]} {[%emt 00:04:56]} dxe4 {[%clk
01:16:08]} {[%emt 00:07:01]} 14. dxe4 {[%clk 01:04:17]} {[%emt 00:01:03]} e5
{[%clk 01:16:06]} {[%emt 00:00:33]} 15. cxd4 {[%clk 00:50:59]} {[%emt
00:13:48]} exd4 {[%clk 01:16:31]} {[%emt 00:00:04]} 16. Nf4 {[%clk 00:49:42]}
{[%emt 00:01:48]} a5 {[%clk 01:12:29]} {[%emt 00:04:32]} 17. Re1 {[%clk
00:46:12]} {[%emt 00:04:00]} Kh7 {[%clk 01:12:00]} {[%emt 00:00:59]} 18. Rc1
{[%clk 00:37:10]} {[%emt 00:09:32]} b5 {[%clk 01:10:52]} {[%emt 00:01:38]} 19.
Nd5 {[%clk 00:35:10]} {[%emt 00:02:30]} Ra7 {[%clk 01:09:22]} {[%emt 00:02:01]}
20. Bf4 {[%clk 00:23:46]} {[%emt 00:11:53]} Nxd5 {[%clk 01:07:21]} {[%emt
00:02:32]} 21. Bxd5 {[%clk 00:23:27]} {[%emt 00:00:50]} Be6 {[%clk 01:07:26]}
{[%emt 00:00:24]} 22. Qb3 {[%clk 00:19:43]} {[%emt 00:04:14]} Qb6 {[%clk
01:04:47]} {[%emt 00:03:09]} 23. Qg3 {[%clk 00:13:51]} {[%emt 00:06:22]} Re8
{[%clk 00:56:48]} {[%emt 00:08:29]} 24. Rc6 {[%clk 00:05:43]} {[%emt 00:08:39]}
Qd8 {[%clk 00:56:27]} {[%emt 00:00:50]} 25. Rd6 {[%clk 00:05:09]} {[%emt
00:01:04]} Qe7 {[%clk 00:50:01]} {[%emt 00:06:56]} 26. Bxe6 {[%clk 00:04:42]}
{[%emt 00:00:57]} fxe6 {[%clk 00:50:28]} {[%emt 00:00:03]} 27. e5 {[%clk
00:03:18]} {[%emt 00:01:55]} Rd7 {[%clk 00:47:59]} {[%emt 00:02:59]} 28. h4
{[%clk 00:02:52]} {[%emt 00:00:56]} Qf7 {[%clk 00:47:01]} {[%emt 00:01:27]} 29.
h5 {[%clk 00:01:54]} {[%emt 00:01:27]} g5 {[%clk 00:46:28]} {[%emt 00:01:04]}
30. Qd3+ {[%clk 00:02:08]} {[%emt 00:00:16]} Kh8 {[%clk 00:46:14]} {[%emt
00:00:44]} 31. Bg3 {[%clk 00:02:06]} {[%emt 00:00:32]} Rxd6 {[%clk 00:45:27]}
{[%emt 00:01:16]} 32. exd6 {[%clk 00:02:24]} {[%emt 00:00:12]} Qd7 {[%clk
00:34:08]} {[%emt 00:11:49]} 33. Qe4 {[%clk 00:02:23]} {[%emt 00:00:31]} Kg8
{[%clk 00:27:52]} {[%emt 00:06:47]} 34. Be5 {[%clk 00:02:12]} {[%emt 00:00:41]}
Bxe5 {[%clk 00:26:01]} {[%emt 00:02:20]} 35. Qxe5 {[%clk 00:02:38]} {[%emt
00:00:04]} Kf7 {[%clk 00:22:38]} {[%emt 00:03:53]} 36. Qxd4 {[%clk 00:02:28]}
{[%emt 00:00:40]} Rd8 {[%clk 00:20:09]} {[%emt 00:02:59]} 37. Rd1 {[%clk
00:02:14]} {[%emt 00:00:44]} Qc6 {[%clk 00:16:32]} {[%emt 00:04:08]} 38. Qd3
{[%clk 00:02:13]} {[%emt 00:00:30]} Kf8 {[%clk 00:16:41]} {[%emt 00:00:22]} 39.
Qg6 {[%clk 00:01:30]} {[%emt 00:01:12]} Rxd6 {[%clk 00:16:54]} {[%emt
00:00:17]} 40. Qxh6+ {[%clk 00:01:46]} {[%emt 00:00:15]} Ke7 {[%clk 00:17:05]}
{[%emt 00:00:19]} 41. Qxg5+ {[%clk 00:02:03]} {[%emt 00:00:13]} Ke8 {[%clk
00:17:17]} {[%emt 00:00:17]} 42. Rxd6 {[%clk 00:01:49]} {[%emt 00:00:45]} Qxd6
{[%clk 00:17:41]} {[%emt 00:00:06]} 43. Qxb5+ {[%clk 00:02:01]} {[%emt
00:00:18]} Kf7 {[%clk 00:17:50]} {[%emt 00:00:20]} 44. Qxa5 {[%clk 00:01:33]}
{[%emt 00:00:59]} e5 {[%clk 00:17:53]} {[%emt 00:00:27]} 45. Qe1 {[%clk
00:01:06]} {[%emt 00:00:57]} Qd4 {[%clk 00:17:30]} {[%emt 00:00:53]} 46. Qe2
{[%clk 00:01:12]} {[%emt 00:00:24]} 1-0

[Event "Elite Hotels Open 2023"]
[Site "Elite Stadshotellet, Kungsgatan 6, Vaxjo, Sweden"]
[Date "2023.02.11"]
[Round "6.15"]
[White "Jakenberg, Jussi"]
[Black "Lindborg, Patrik"]
[Result "0-1"]
[TimeControl "15 minutes + 5 seconds per move from move one (Round 1 - 4) / 90 minutes + 30 seconds per move from move one (Round 5 - 8)"]
[WhiteFideId "1710931"]
[BlackFideId "1707507"]
[WhiteElo "2059"]
[BlackElo "2184"]

1. d4 {[%clk 01:30:54]} {[%emt 00:00:02]} Nf6 {[%clk 01:30:57]} {[%emt
00:00:05]} 2. Nf3 {[%clk 01:31:16]} {[%emt 00:00:09]} g6 {[%clk 01:31:07]}
{[%emt 00:00:20]} 3. g3 {[%clk 01:31:32]} {[%emt 00:00:14]} Bg7 {[%clk
01:31:34]} {[%emt 00:00:02]} 4. Bg2 {[%clk 01:31:48]} {[%emt 00:00:15]} O-O
{[%clk 01:31:55]} {[%emt 00:00:09]} 5. b3 {[%clk 01:31:56]} {[%emt 00:00:22]}
a5 {[%clk 01:26:46]} {[%emt 00:05:39]} 6. Bb2 {[%clk 01:30:08]} {[%emt
00:02:17]} d6 {[%clk 01:21:26]} {[%emt 00:05:51]} 7. O-O {[%clk 01:28:40]}
{[%emt 00:01:58]} a4 {[%clk 01:20:51]} {[%emt 00:01:05]} 8. b4 {[%clk
01:23:20]} {[%emt 00:05:50]} Nd5 {[%clk 01:13:57]} {[%emt 00:07:23]} 9. a3
{[%clk 01:19:56]} {[%emt 00:03:55]} c5 {[%clk 01:12:11]} {[%emt 00:02:16]} 10.
c3 {[%clk 01:11:53]} {[%emt 00:08:34]} Nb6 {[%clk 01:06:29]} {[%emt 00:06:12]}
11. Nbd2 {[%clk 01:11:10]} {[%emt 00:01:13]} Nc6 {[%clk 01:02:36]} {[%emt
00:04:23]} 12. Qc2 {[%clk 01:05:26]} {[%emt 00:06:14]} e5 {[%clk 01:00:21]}
{[%emt 00:02:44]} 13. dxc5 {[%clk 01:01:32]} {[%emt 00:04:24]} dxc5 {[%clk
01:00:39]} {[%emt 00:00:12]} 14. Rfd1 {[%clk 00:58:12]} {[%emt 00:03:51]} Qe7
{[%clk 01:00:48]} {[%emt 00:00:20]} 15. Ne4 {[%clk 00:51:17]} {[%emt 00:07:25]}
Bf5 {[%clk 00:59:01]} {[%emt 00:02:17]} 16. Nh4 {[%clk 00:49:34]} {[%emt
00:02:14]} Bxe4 {[%clk 00:57:34]} {[%emt 00:01:58]} 17. Bxe4 {[%clk 00:47:59]}
{[%emt 00:02:04]} Rac8 {[%clk 00:55:57]} {[%emt 00:02:07]} 18. Bxc6 {[%clk
00:41:11]} {[%emt 00:07:18]} Rxc6 {[%clk 00:56:15]} {[%emt 00:00:12]} 19. b5
{[%clk 00:39:56]} {[%emt 00:01:45]} Rcc8 {[%clk 00:53:05]} {[%emt 00:03:40]} 20.
c4 {[%clk 00:38:34]} {[%emt 00:01:52]} Qe6 {[%clk 00:49:42]} {[%emt 00:03:53]}
21. Rac1 {[%clk 00:37:56]} {[%emt 00:01:08]} Rcd8 {[%clk 00:49:10]} {[%emt
00:01:01]} 22. Rxd8 {[%clk 00:32:53]} {[%emt 00:05:33]} Rxd8 {[%clk 00:49:30]}
{[%emt 00:00:11]} 23. Nf3 {[%clk 00:31:01]} {[%emt 00:02:22]} h6 {[%clk
00:39:00]} {[%emt 00:11:00]} 24. Nd2 {[%clk 00:25:57]} {[%emt 00:05:33]} f5
{[%clk 00:36:24]} {[%emt 00:03:07]} 25. Nf1 {[%clk 00:18:48]} {[%emt 00:07:39]}
e4 {[%clk 00:30:25]} {[%emt 00:06:30]} 26. Bxg7 {[%clk 00:17:48]} {[%emt
00:01:29]} Kxg7 {[%clk 00:30:54]} {[%emt 00:00:02]} 27. Ne3 {[%clk 00:17:40]}
{[%emt 00:00:38]} Qe5 {[%clk 00:30:03]} {[%emt 00:01:20]} 28. Nd5 {[%clk
00:15:30]} {[%emt 00:02:40]} Nxd5 29. cxd5 {[%clk 00:15:59]} Rxd5 {[%clk
00:23:46]} {[%emt 00:02:43]} 30. Qxa4 {[%clk 00:15:40]} {[%emt 00:00:48]} e3
{[%clk 00:20:29]} {[%emt 00:03:47]} 31. f3 {[%clk 00:13:20]} {[%emt 00:02:50]}
Qb2 {[%clk 00:20:30]} {[%emt 00:00:28]} 32. Qc4 {[%clk 00:11:32]} {[%emt
00:02:18]} Qd2 {[%clk 00:16:20]} {[%emt 00:04:41]} 33. b6 {[%clk 00:09:46]}
{[%emt 00:02:16]} Kf6 {[%clk 00:15:25]} {[%emt 00:01:25]} 34. a4 {[%clk
00:09:10]} {[%emt 00:01:05]} Ke6 {[%clk 00:13:35]} {[%emt 00:02:20]} 35. Rc2
{[%clk 00:04:48]} {[%emt 00:04:52]} Qe1+ {[%clk 00:07:38]} {[%emt 00:06:27]} 36.
Kg2 {[%clk 00:05:15]} Qf2+ {[%clk 00:07:58]} {[%emt 00:00:12]} 37. Kh3 {[%clk
00:05:38]} {[%emt 00:00:06]} Qf1+ {[%clk 00:07:56]} {[%emt 00:00:32]} 38. Kh4
{[%clk 00:06:03]} {[%emt 00:00:06]} Kf6 {[%clk 00:07:37]} {[%emt 00:00:48]} 0-1

[Event "Elite Hotels Open 2023"]
[Site "Elite Stadshotellet, Kungsgatan 6, Vaxjo, Sweden"]
[Date "2023.02.11"]
[Round "6.16"]
[White "Ask, Josef"]
[Black "Neretljak, Nedzad"]
[Result "1-0"]
[TimeControl "15 minutes + 5 seconds per move from move one (Round 1 - 4) / 90 minutes + 30 seconds per move from move one (Round 5 - 8)"]
[WhiteTitle "FM"]
[BlackTitle "CM"]
[WhiteFideId "1704583"]
[BlackFideId "1713132"]
[WhiteElo "2169"]
[BlackElo "2051"]

1. Nf3 {[%clk 01:30:57]} {[%emt 00:00:02]} d6 {[%clk 01:29:42]} {[%emt
00:01:19]} 2. e4 {[%clk 01:30:41]} {[%emt 00:00:45]} Nf6 {[%clk 01:28:28]}
{[%emt 00:01:45]} 3. d3 {[%clk 01:30:27]} {[%emt 00:00:44]} e5 {[%clk
01:27:41]} {[%emt 00:01:16]} 4. g3 {[%clk 01:30:24]} {[%emt 00:00:34]} Nc6
{[%clk 01:27:49]} {[%emt 00:00:21]} 5. Bg2 {[%clk 01:30:27]} {[%emt 00:00:27]}
Be7 {[%clk 01:24:47]} {[%emt 00:03:33]} 6. O-O {[%clk 01:30:28]} {[%emt
00:00:29]} Bg4 {[%clk 01:23:43]} {[%emt 00:01:33]} 7. h3 {[%clk 01:30:35]}
{[%emt 00:00:24]} Bh5 {[%clk 01:20:54]} {[%emt 00:03:18]} 8. g4 {[%clk
01:29:04]} {[%emt 00:02:01]} Nxg4 {[%clk 01:19:37]} {[%emt 00:01:47]} 9. hxg4
{[%clk 01:28:53]} {[%emt 00:00:42]} Bxg4 {[%clk 01:20:00]} {[%emt 00:00:07]} 10.
c3 {[%clk 01:28:16]} {[%emt 00:01:07]} h5 {[%clk 01:18:55]} {[%emt 00:01:35]}
11. Qb3 {[%clk 01:27:45]} {[%emt 00:01:01]} b6 {[%clk 01:04:55]} {[%emt
00:14:30]} 12. Nh2 {[%clk 01:26:05]} {[%emt 00:02:11]} Qd7 {[%clk 01:04:52]}
{[%emt 00:00:32]} 13. f4 {[%clk 01:25:12]} {[%emt 00:01:24]} Be2 {[%clk
00:59:14]} {[%emt 00:06:07]} 14. Rf2 {[%clk 01:24:01]} {[%emt 00:01:41]} Bxd3
{[%clk 00:59:33]} {[%emt 00:00:11]} 15. Qd5 {[%clk 01:22:53]} {[%emt 00:01:38]}
Bxb1 {[%clk 00:46:41]} {[%emt 00:13:22]} 16. Rxb1 {[%clk 01:22:35]} {[%emt
00:00:48]} O-O {[%clk 00:39:57]} {[%emt 00:07:13]} 17. Rf3 {[%clk 01:20:22]}
{[%emt 00:02:44]} Bf6 {[%clk 00:37:07]} {[%emt 00:03:19]} 18. Rh3 {[%clk
01:17:05]} {[%emt 00:03:48]} Ne7 {[%clk 00:33:37]} {[%emt 00:03:59]} 19. Qd1
{[%clk 01:16:23]} {[%emt 00:01:13]} g6 {[%clk 00:32:53]} {[%emt 00:01:13]} 20.
f5 {[%clk 01:15:39]} {[%emt 00:01:15]} d5 {[%clk 00:31:21]} {[%emt 00:02:01]}
21. Bh6 {[%clk 01:15:05]} {[%emt 00:01:05]} Rfd8 {[%clk 00:31:33]} {[%emt
00:00:17]} 22. Qb3 {[%clk 01:08:10]} {[%emt 00:07:25]} c6 {[%clk 00:28:55]}
{[%emt 00:03:08]} 23. Rf1 {[%clk 01:07:53]} {[%emt 00:00:46]} gxf5 {[%clk
00:27:10]} {[%emt 00:02:16]} 24. Qd1 {[%clk 01:06:11]} {[%emt 00:02:13]} f4
{[%clk 00:25:52]} {[%emt 00:01:47]} 25. Qxh5 {[%clk 01:06:00]} {[%emt
00:00:41]} Ng6 {[%clk 00:25:26]} {[%emt 00:00:56]} 26. Ng4 {[%clk 01:05:17]}
{[%emt 00:01:12]} Bh8 {[%clk 00:18:15]} {[%emt 00:07:41]} 27. Bg5 {[%clk
01:04:30]} {[%emt 00:01:16]} Qd6 {[%clk 00:17:54]} {[%emt 00:00:52]} 28. Qh7+
{[%clk 01:03:36]} {[%emt 00:01:24]} Kf8 {[%clk 00:18:02]} {[%emt 00:00:22]} 29.
Nh6 {[%clk 01:03:27]} {[%emt 00:00:40]} Qc5+ {[%clk 00:15:36]} {[%emt
00:02:56]} 30. Kh1 {[%clk 01:03:33]} {[%emt 00:00:24]} 1-0